[Event "The Kvibergspelen 2024"]
[Site "Kviberg Park Hotel & Conference, Krutvagen 2, Gothenburg, Sweden"]
[Date "2024.09.06"]
[Round "4.6"]
[White "Ostlund, Joar"]
[Black "Sjoholm, Emil"]
[Result "0-1"]
[TimeControl "15 minutes + 5 seconds per move from move one (Round 1 - 4) / 90 minutes + 30 seconds per move from move one (Round 5 - 8)"]
[WhiteTitle "FM"]
[WhiteFideId "1735020"]
[BlackFideId "1720449"]
[WhiteElo "2335"]
[BlackElo "2092"]

1. d4 {[%clk 00:15:08]} {[%emt 00:00:03]} Nf6 {[%clk 00:15:09]} {[%emt
00:00:02]} 2. c4 {[%clk 00:15:12]} {[%emt 00:00:01]} e6 {[%clk 00:15:12]}
{[%emt 00:00:02]} 3. Nf3 {[%clk 00:15:15]} {[%emt 00:00:01]} c5 {[%clk
00:15:16]} {[%emt 00:00:01]} 4. d5 {[%clk 00:15:18]} {[%emt 00:00:01]} exd5
{[%clk 00:15:20]} {[%emt 00:00:02]} 5. cxd5 {[%clk 00:15:22]} {[%emt 00:00:01]}
d6 {[%clk 00:15:24]} 6. Nc3 {[%clk 00:15:25]} {[%emt 00:00:02]} g6 {[%clk
00:15:25]} {[%emt 00:00:02]} 7. h3 {[%clk 00:15:29]} {[%emt 00:00:02]} Bg7
{[%clk 00:15:27]} {[%emt 00:00:04]} 8. Bf4 {[%clk 00:15:32]} {[%emt 00:00:01]}
O-O {[%clk 00:15:21]} {[%emt 00:00:11]} 9. e3 {[%clk 00:15:35]} {[%emt
00:00:02]} Ne8 {[%clk 00:15:03]} {[%emt 00:00:23]} 10. Be2 {[%clk 00:15:31]}
{[%emt 00:00:09]} f5 {[%clk 00:14:19]} {[%emt 00:00:48]} 11. O-O {[%clk
00:15:28]} {[%emt 00:00:09]} Nd7 {[%clk 00:13:51]} {[%emt 00:00:33]} 12. a4
{[%clk 00:09:11]} {[%emt 00:06:22]} h6 {[%clk 00:11:36]} {[%emt 00:02:20]} 13.
Bh2 {[%clk 00:09:09]} {[%emt 00:00:07]} g5 {[%clk 00:11:18]} {[%emt 00:00:23]}
14. Nd2 {[%clk 00:08:28]} {[%emt 00:00:46]} f4 {[%clk 00:09:45]} {[%emt
00:01:38]} 15. exf4 {[%clk 00:08:19]} {[%emt 00:00:14]} gxf4 {[%clk 00:09:47]}
{[%emt 00:00:03]} 16. Nc4 {[%clk 00:06:53]} {[%emt 00:01:31]} Ne5 {[%clk
00:09:42]} {[%emt 00:00:10]} 17. Nxe5 {[%clk 00:06:43]} {[%emt 00:00:15]} Bxe5
{[%clk 00:09:39]} {[%emt 00:00:09]} 18. Kh1 {[%clk 00:05:47]} {[%emt 00:01:00]}
Qh4 {[%clk 00:09:00]} {[%emt 00:00:44]} 19. Bf3 {[%clk 00:05:23]} {[%emt
00:00:29]} Rf5 {[%clk 00:08:00]} {[%emt 00:01:05]} 20. Bg4 {[%clk 00:04:17]}
{[%emt 00:01:12]} Rg5 {[%clk 00:07:46]} {[%emt 00:00:19]} 21. f3 {[%clk
00:03:48]} {[%emt 00:00:34]} Nf6 {[%clk 00:07:13]} {[%emt 00:00:36]} 22. Qe1
{[%clk 00:01:12]} {[%emt 00:02:42]} Qxe1 {[%clk 00:07:16]} {[%emt 00:00:02]} 23.
Raxe1 {[%clk 00:01:11]} {[%emt 00:00:06]} Kf7 {[%clk 00:04:25]} {[%emt
00:02:55]} 24. Re2 {[%clk 00:00:53]} {[%emt 00:00:24]} h5 {[%clk 00:03:23]}
{[%emt 00:01:07]} 25. Bxc8 {[%clk 00:00:36]} {[%emt 00:00:22]} Rxc8 {[%clk
00:03:27]} {[%emt 00:00:02]} 26. Rd1 {[%clk 00:00:33]} {[%emt 00:00:07]} h4
{[%clk 00:03:11]} {[%emt 00:00:21]} 27. Ne4 {[%clk 00:00:26]} {[%emt 00:00:12]}
Rg6 {[%clk 00:03:03]} {[%emt 00:00:13]} 28. b3 {[%clk 00:00:17]} {[%emt
00:00:15]} Nh5 {[%clk 00:02:36]} {[%emt 00:00:32]} 29. Rc1 {[%clk 00:00:10]}
{[%emt 00:00:12]} Re8 {[%clk 00:01:40]} {[%emt 00:01:00]} 30. Rce1 {[%clk
00:00:09]} {[%emt 00:00:06]} Reg8 {[%clk 00:01:33]} {[%emt 00:00:12]} 31. Rd1
{[%clk 00:00:07]} {[%emt 00:00:07]} b6 {[%clk 00:01:29]} {[%emt 00:00:10]} 32.
Kg1 {[%clk 00:00:08]} {[%emt 00:00:04]} Ng7 {[%clk 00:01:26]} {[%emt 00:00:07]}
33. Rde1 {[%clk 00:00:08]} {[%emt 00:00:05]} Nf5 {[%clk 00:01:26]} {[%emt
00:00:06]} 34. Kh1 {[%clk 00:00:09]} {[%emt 00:00:04]} Nd4 {[%clk 00:01:20]}
{[%emt 00:00:10]} 35. Rf2 {[%clk 00:00:09]} {[%emt 00:00:05]} Nxb3 {[%emt
00:00:25]} 36. Rb1 {[%clk 00:00:12]} Nd4 {[%clk 00:01:02]} {[%emt 00:00:06]} 37.
Kg1 {[%clk 00:00:06]} {[%emt 00:00:11]} Nf5 {[%clk 00:01:05]} {[%emt 00:00:01]}
38. Kf1 {[%clk 00:00:08]} {[%emt 00:00:03]} Ne3+ {[%clk 00:01:09]} 39. Ke2
{[%clk 00:00:10]} {[%emt 00:00:03]} Rxg2 {[%clk 00:01:02]} {[%emt 00:00:12]} 40.
a5 {[%clk 00:00:10]} {[%emt 00:00:05]} Rxf2+ {[%clk 00:01:01]} {[%emt
00:00:05]} 41. Nxf2 {[%clk 00:00:14]} {[%emt 00:00:02]} Nxd5 {[%clk 00:00:47]}
{[%emt 00:00:19]} 42. Kd3 {[%clk 00:00:10]} {[%emt 00:00:09]} Nb4+ {[%clk
00:00:40]} {[%emt 00:00:12]} 43. Ke4 {[%clk 00:00:12]} {[%emt 00:00:02]} Ke6
{[%clk 00:00:43]} {[%emt 00:00:02]} 44. Bxf4 {[%clk 00:00:12]} {[%emt
00:00:05]} d5+ {[%clk 00:00:43]} {[%emt 00:00:05]} 45. Ke3 {[%clk 00:00:16]}
{[%emt 00:00:02]} Bd4+ {[%clk 00:00:45]} {[%emt 00:00:02]} 46. Ke2 {[%clk
00:00:19]} {[%emt 00:00:02]} Rg2 {[%clk 00:00:49]} {[%emt 00:00:01]} 47. Be3
{[%clk 00:00:21]} {[%emt 00:00:03]} Bxe3 {[%clk 00:00:40]} {[%emt 00:00:14]} 48.
Kxe3 {[%clk 00:00:25]} {[%emt 00:00:01]} d4+ {[%clk 00:00:43]} {[%emt
00:00:02]} 49. Ke2 {[%clk 00:00:26]} {[%emt 00:00:03]} bxa5 {[%clk 00:00:40]}
{[%emt 00:00:08]} 50. Kf1 {[%clk 00:00:27]} {[%emt 00:00:05]} Rg3 {[%clk
00:00:39]} {[%emt 00:00:05]} 51. Ke2 {[%clk 00:00:28]} {[%emt 00:00:04]} c4
{[%clk 00:00:31]} {[%emt 00:00:13]} 52. Ra1 {[%clk 00:00:28]} {[%emt 00:00:04]}
c3 {[%clk 00:00:23]} {[%emt 00:00:13]} 53. Rxa5 {[%clk 00:00:27]} {[%emt
00:00:06]} c2 {[%clk 00:00:27]} {[%emt 00:00:01]} 54. Rc5 {[%clk 00:00:24]}
{[%emt 00:00:09]} Rg1 {[%clk 00:00:29]} {[%emt 00:00:02]} 55. Kd2 {[%clk
00:00:23]} {[%emt 00:00:06]} Rf1 {[%clk 00:00:15]} {[%emt 00:00:19]} 56. Ne4
{[%clk 00:00:06]} {[%emt 00:00:23]} d3 {[%clk 00:00:10]} {[%emt 00:00:09]} 57.
Ng5+ {[%clk 00:00:08]} {[%emt 00:00:03]} Ke7 {[%clk 00:00:10]} {[%emt
00:00:05]} 58. Rc4 {[%clk 00:00:06]} {[%emt 00:00:07]} Na2 {[%clk 00:00:14]}
{[%emt 00:00:01]} 59. Re4+ {[%clk 00:00:06]} {[%emt 00:00:05]} Kf6 {[%clk
00:00:15]} {[%emt 00:00:05]} 60. Nh7+ {[%clk 00:00:08]} {[%emt 00:00:02]} Kg6
{[%clk 00:00:19]} {[%emt 00:00:02]} 61. Nf8+ {[%clk 00:00:11]} {[%emt
00:00:02]} Kf7 {[%clk 00:00:23]} {[%emt 00:00:01]} 62. Rf4+ {[%clk 00:00:13]}
{[%emt 00:00:03]} Ke7 {[%clk 00:00:27]} {[%emt 00:00:01]} 63. Ng6+ {[%clk
00:00:16]} {[%emt 00:00:02]} Ke6 {[%clk 00:00:30]} {[%emt 00:00:01]} 64. Re4+
{[%clk 00:00:18]} {[%emt 00:00:03]} Kf6 {[%clk 00:00:34]} {[%emt 00:00:02]} 0-1

[Event "The Kvibergspelen 2024"]
[Site "Kviberg Park Hotel & Conference, Krutvagen 2, Gothenburg, Sweden"]
[Date "2024.09.06"]
[Round "4.7"]
[White "Krilovs, Nikolajs"]
[Black "Ernst, Thomas"]
[Result "0-1"]
[TimeControl "15 minutes + 5 seconds per move from move one (Round 1 - 4) / 90 minutes + 30 seconds per move from move one (Round 5 - 8)"]
[BlackTitle "GM"]
[WhiteFideId "11603100"]
[BlackFideId "1700065"]
[WhiteElo "2054"]
[BlackElo "2261"]

1. e4 {[%clk 00:15:07]} {[%emt 00:00:03]} e5 {[%clk 00:15:06]} {[%emt
00:00:04]} 2. Nf3 {[%clk 00:15:09]} {[%emt 00:00:03]} Nc6 {[%clk 00:15:09]}
{[%emt 00:00:02]} 3. Bb5 {[%clk 00:15:12]} {[%emt 00:00:02]} a6 {[%clk
00:15:12]} {[%emt 00:00:03]} 4. Ba4 {[%clk 00:15:14]} {[%emt 00:00:02]} Nf6
{[%clk 00:15:15]} {[%emt 00:00:02]} 5. O-O {[%clk 00:14:58]} {[%emt 00:00:21]}
Nxe4 {[%clk 00:15:14]} {[%emt 00:00:06]} 6. d4 {[%clk 00:14:53]} {[%emt
00:00:10]} b5 {[%clk 00:15:16]} {[%emt 00:00:03]} 7. Bb3 {[%clk 00:14:50]}
{[%emt 00:00:08]} d5 {[%clk 00:15:18]} {[%emt 00:00:03]} 8. dxe5 {[%clk
00:14:11]} {[%emt 00:00:43]} Be6 {[%clk 00:15:19]} {[%emt 00:00:06]} 9. c3
{[%clk 00:14:09]} {[%emt 00:00:07]} Bc5 {[%clk 00:15:18]} {[%emt 00:00:05]} 10.
Nbd2 {[%clk 00:13:49]} {[%emt 00:00:26]} O-O {[%clk 00:15:16]} {[%emt
00:00:06]} 11. Nxe4 {[%clk 00:12:38]} {[%emt 00:01:16]} dxe4 {[%clk 00:15:16]}
{[%emt 00:00:06]} 12. Bxe6 {[%clk 00:11:07]} {[%emt 00:01:35]} Qxd1 {[%clk
00:14:01]} {[%emt 00:01:19]} 13. Rxd1 {[%clk 00:11:00]} {[%emt 00:00:13]} fxe6
{[%clk 00:14:03]} {[%emt 00:00:03]} 14. Nd4 {[%clk 00:10:37]} {[%emt 00:00:27]}
Nxe5 {[%clk 00:13:40]} {[%emt 00:00:29]} 15. Re1 {[%clk 00:09:46]} {[%emt
00:00:56]} Nd3 {[%clk 00:12:34]} {[%emt 00:01:10]} 16. Rxe4 {[%clk 00:09:31]}
{[%emt 00:00:21]} e5 {[%clk 00:11:04]} {[%emt 00:01:35]} 17. Ne6 {[%clk
00:07:19]} {[%emt 00:02:18]} Bxf2+ {[%clk 00:10:49]} {[%emt 00:00:20]} 18. Kh1
{[%clk 00:06:19]} {[%emt 00:01:04]} Rf6 {[%clk 00:09:53]} {[%emt 00:01:01]} 19.
Nxc7 {[%clk 00:05:12]} {[%emt 00:01:14]} Bb6 {[%clk 00:09:14]} {[%emt
00:00:41]} 20. Be3 {[%clk 00:05:08]} {[%emt 00:00:10]} Bxc7 {[%clk 00:08:50]}
{[%emt 00:00:29]} 21. b3 {[%clk 00:05:11]} {[%emt 00:00:02]} Raf8 {[%clk
00:08:38]} {[%emt 00:00:17]} 22. h4 {[%clk 00:05:10]} {[%emt 00:00:06]} Nf2+
{[%clk 00:08:27]} {[%emt 00:00:15]} 23. Bxf2 {[%clk 00:05:13]} {[%emt
00:00:03]} Rxf2 {[%clk 00:08:30]} {[%emt 00:00:02]} 24. a4 {[%clk 00:05:15]}
{[%emt 00:00:03]} R8f4 {[%clk 00:07:58]} {[%emt 00:00:37]} 25. Rxf4 {[%clk
00:05:14]} {[%emt 00:00:07]} Rxf4 {[%clk 00:08:00]} {[%emt 00:00:02]} 26. g3
{[%clk 00:05:16]} {[%emt 00:00:02]} Rf8 {[%clk 00:07:21]} {[%emt 00:00:45]} 27.
axb5 {[%clk 00:05:17]} {[%emt 00:00:04]} axb5 {[%clk 00:07:23]} {[%emt
00:00:04]} 28. Ra7 {[%clk 00:05:19]} {[%emt 00:00:02]} Bb8 {[%clk 00:07:10]}
{[%emt 00:00:17]} 29. Re7 {[%clk 00:05:14]} {[%emt 00:00:11]} Bd6 {[%clk
00:07:01]} {[%emt 00:00:14]} 30. Rd7 {[%clk 00:05:13]} {[%emt 00:00:06]} Rf6
{[%clk 00:06:56]} {[%emt 00:00:10]} 31. g4 {[%clk 00:05:13]} {[%emt 00:00:06]}
e4 {[%clk 00:06:50]} {[%emt 00:00:10]} 0-1

[Event "The Kvibergspelen 2024"]
[Site "Kviberg Park Hotel & Conference, Krutvagen 2, Gothenburg, Sweden"]
[Date "2024.09.06"]
[Round "4.8"]
[White "Andersson, Robert"]
[Black "Wahlstrom, Lennart"]
[Result "0-1"]
[TimeControl "15 minutes + 5 seconds per move from move one (Round 1 - 4) / 90 minutes + 30 seconds per move from move one (Round 5 - 8)"]
[WhiteFideId "1703226"]
[BlackFideId "1706829"]
[WhiteElo "2098"]
[BlackElo "2058"]

1. e4 {[%clk 00:14:54]} {[%emt 00:00:16]} e5 {[%clk 00:15:12]} {[%emt
00:00:03]} 2. Nf3 {[%clk 00:14:55]} {[%emt 00:00:03]} Nc6 {[%clk 00:15:15]}
{[%emt 00:00:02]} 3. Bb5 {[%clk 00:14:49]} {[%emt 00:00:11]} Nf6 {[%clk
00:15:18]} {[%emt 00:00:02]} 4. O-O {[%clk 00:14:09]} {[%emt 00:00:45]} Nxe4
{[%clk 00:15:09]} {[%emt 00:00:14]} 5. d4 {[%clk 00:14:11]} {[%emt 00:00:02]}
Nd6 {[%clk 00:15:04]} {[%emt 00:00:11]} 6. Bxc6 {[%clk 00:14:14]} {[%emt
00:00:03]} dxc6 {[%clk 00:15:07]} {[%emt 00:00:02]} 7. dxe5 {[%clk 00:14:16]}
{[%emt 00:00:02]} Nf5 {[%clk 00:15:09]} {[%emt 00:00:03]} 8. Qxd8+ {[%clk
00:14:18]} {[%emt 00:00:03]} Kxd8 {[%clk 00:15:12]} {[%emt 00:00:02]} 9. h3
{[%clk 00:14:14]} {[%emt 00:00:09]} Be7 {[%clk 00:14:54]} {[%emt 00:00:24]} 10.
Nc3 {[%clk 00:13:11]} {[%emt 00:01:07]} Nh4 {[%clk 00:14:01]} {[%emt 00:00:57]}
11. Rd1+ {[%clk 00:12:14]} {[%emt 00:01:03]} Ke8 {[%clk 00:14:00]} {[%emt
00:00:06]} 12. Nd4 {[%clk 00:12:02]} {[%emt 00:00:16]} Ng6 {[%clk 00:11:48]}
{[%emt 00:02:18]} 13. Nf3 {[%clk 00:11:22]} {[%emt 00:00:46]} Be6 {[%clk
00:10:37]} {[%emt 00:01:15]} 14. Be3 {[%clk 00:11:08]} {[%emt 00:00:19]} Rd8
{[%clk 00:09:20]} {[%emt 00:01:23]} 15. Rxd8+ {[%clk 00:11:11]} {[%emt
00:00:02]} Kxd8 {[%clk 00:09:16]} {[%emt 00:00:09]} 16. Rd1+ {[%clk 00:10:55]}
{[%emt 00:00:20]} Kc8 {[%clk 00:09:19]} {[%emt 00:00:02]} 17. a3 {[%clk
00:10:44]} {[%emt 00:00:16]} Rd8 {[%emt 00:00:13]} 18. Rxd8+ {[%clk 00:10:39]}
{[%emt 00:00:08]} Kxd8 {[%clk 00:09:16]} {[%emt 00:00:02]} 19. g4 {[%clk
00:09:58]} {[%emt 00:00:45]} a6 {[%clk 00:09:05]} {[%emt 00:00:17]} 20. Ne4
{[%clk 00:08:33]} {[%emt 00:01:30]} Bd5 {[%clk 00:08:54]} {[%emt 00:00:16]} 21.
Ned2 {[%clk 00:08:23]} {[%emt 00:00:15]} Kd7 {[%clk 00:08:24]} {[%emt
00:00:35]} 22. c4 {[%clk 00:05:41]} {[%emt 00:02:47]} Bxf3 {[%clk 00:08:12]}
{[%emt 00:00:17]} 23. Nxf3 {[%clk 00:05:44]} {[%emt 00:00:03]} Ke6 {[%clk
00:07:59]} {[%emt 00:00:17]} 24. Bd4 {[%clk 00:05:10]} {[%emt 00:00:39]} Nf4
{[%clk 00:07:46]} {[%emt 00:00:18]} 25. Kh2 {[%clk 00:05:11]} {[%emt 00:00:03]}
c5 {[%clk 00:06:07]} {[%emt 00:01:45]} 26. Bc3 {[%clk 00:05:01]} {[%emt
00:00:15]} h6 {[%clk 00:05:15]} {[%emt 00:00:58]} 27. b3 {[%clk 00:03:45]}
{[%emt 00:01:21]} b5 {[%clk 00:04:54]} {[%emt 00:00:26]} 28. Ba5 {[%clk
00:01:57]} {[%emt 00:01:53]} c6 {[%clk 00:04:50]} {[%emt 00:00:08]} 29. Bd2
{[%clk 00:01:45]} {[%emt 00:00:17]} Nd3 {[%clk 00:04:41]} {[%emt 00:00:14]} 30.
Kg3 {[%clk 00:01:32]} {[%emt 00:00:18]} bxc4 {[%clk 00:04:10]} {[%emt
00:00:37]} 31. bxc4 {[%clk 00:01:34]} {[%emt 00:00:03]} Nb2 {[%clk 00:04:12]}
{[%emt 00:00:03]} 32. Bc3 {[%clk 00:01:14]} {[%emt 00:00:24]} Nxc4 {[%clk
00:04:10]} {[%emt 00:00:07]} 33. a4 {[%clk 00:01:17]} {[%emt 00:00:02]} Nb6
{[%clk 00:03:28]} {[%emt 00:00:47]} 34. a5 {[%clk 00:01:21]} {[%emt 00:00:02]}
Nd5 {[%clk 00:03:31]} {[%emt 00:00:01]} 35. Bd2 {[%clk 00:00:57]} {[%emt
00:00:29]} Bd8 {[%clk 00:03:24]} {[%emt 00:00:12]} 36. g5 {[%clk 00:00:37]}
{[%emt 00:00:25]} hxg5 {[%clk 00:03:09]} {[%emt 00:00:19]} 37. Kg4 {[%clk
00:00:24]} {[%emt 00:00:18]} f6 {[%clk 00:02:54]} {[%emt 00:00:21]} 38. Kh5
{[%clk 00:00:21]} {[%emt 00:00:08]} Nf4+ {[%clk 00:02:41]} {[%emt 00:00:18]} 39.
Bxf4 {[%clk 00:00:24]} {[%emt 00:00:03]} gxf4 {[%clk 00:02:44]} {[%emt
00:00:01]} 40. Kg6 {[%clk 00:00:26]} {[%emt 00:00:03]} fxe5 {[%clk 00:02:43]}
{[%emt 00:00:07]} 41. Kxg7 {[%clk 00:00:23]} {[%emt 00:00:08]} e4 {[%clk
00:02:46]} {[%emt 00:00:02]} 42. Nd2 {[%clk 00:00:19]} {[%emt 00:00:08]} e3
{[%clk 00:02:48]} {[%emt 00:00:03]} 43. fxe3 {[%clk 00:00:22]} {[%emt
00:00:02]} fxe3 {[%clk 00:02:52]} {[%emt 00:00:01]} 44. Nf3 {[%clk 00:00:19]}
{[%emt 00:00:09]} e2 {[%clk 00:02:55]} {[%emt 00:00:01]} 45. Kg6 {[%clk
00:00:20]} {[%emt 00:00:04]} Bh4 {[%clk 00:02:54]} {[%emt 00:00:05]} 46. Nxh4
{[%clk 00:00:11]} {[%emt 00:00:14]} e1=Q {[%clk 00:02:55]} {[%emt 00:00:04]} 47.
Nf3 {[%clk 00:00:09]} {[%emt 00:00:07]} Qg3 {[%clk 00:02:56]} {[%emt 00:00:03]}
48. Ng5+ {[%clk 00:00:13]} {[%emt 00:00:01]} Ke5 {[%clk 00:02:57]} {[%emt
00:00:03]} 49. h4 {[%clk 00:00:17]} {[%emt 00:00:03]} c4 {[%clk 00:03:00]}
{[%emt 00:00:02]} 50. Kf7 {[%clk 00:00:15]} {[%emt 00:00:08]} Qf4+ {[%clk
00:02:57]} {[%emt 00:00:07]} 51. Kg6 {[%clk 00:00:11]} {[%emt 00:00:08]} Qf6+
{[%clk 00:02:59]} {[%emt 00:00:04]} 52. Kh5 {[%clk 00:00:14]} {[%emt 00:00:01]}
c3 {[%clk 00:03:03]} {[%emt 00:00:01]} 0-1

[Event "The Kvibergspelen 2024"]
[Site "Kviberg Park Hotel & Conference, Krutvagen 2, Gothenburg, Sweden"]
[Date "2024.09.06"]
[Round "4.9"]
[White "Andersson, Johan"]
[Black "Bengtsson, Siv"]
[Result "1-0"]
[TimeControl "15 minutes + 5 seconds per move from move one (Round 1 - 4) / 90 minutes + 30 seconds per move from move one (Round 5 - 8)"]
[WhiteFideId "1703935"]
[BlackFideId "1701673"]
[WhiteElo "2158"]
[BlackElo "1972"]

1. e4 {[%clk 00:15:07]} {[%emt 00:00:02]} c5 {[%clk 00:15:09]} {[%emt
00:00:01]} 2. Nf3 {[%clk 00:15:09]} {[%emt 00:00:03]} Nc6 {[%clk 00:15:13]}
{[%emt 00:00:01]} 3. Bb5 {[%clk 00:15:10]} {[%emt 00:00:04]} d6 {[%clk
00:15:17]} {[%emt 00:00:03]} 4. d4 {[%clk 00:15:07]} {[%emt 00:00:06]} cxd4
{[%clk 00:15:19]} {[%emt 00:00:03]} 5. Qxd4 {[%clk 00:15:08]} {[%emt 00:00:05]}
Bd7 {[%clk 00:15:19]} {[%emt 00:00:04]} 6. Bxc6 {[%clk 00:15:10]} {[%emt
00:00:04]} Bxc6 {[%clk 00:15:22]} {[%emt 00:00:02]} 7. Nc3 {[%clk 00:15:08]}
{[%emt 00:00:06]} Nf6 {[%clk 00:15:03]} {[%emt 00:00:24]} 8. Bg5 {[%clk
00:15:08]} {[%emt 00:00:05]} e6 {[%clk 00:14:26]} {[%emt 00:00:42]} 9. O-O-O
{[%clk 00:15:05]} {[%emt 00:00:08]} Be7 {[%clk 00:14:02]} {[%emt 00:00:29]} 10.
Rhe1 {[%clk 00:15:01]} {[%emt 00:00:09]} O-O {[%clk 00:13:27]} {[%emt
00:00:41]} 11. Kb1 {[%clk 00:14:57]} {[%emt 00:00:09]} a6 {[%clk 00:10:43]}
{[%emt 00:02:49]} 12. Qd2 {[%clk 00:14:21]} {[%emt 00:00:39]} Rc8 {[%clk
00:10:28]} {[%emt 00:00:22]} 13. Nd4 {[%clk 00:14:09]} {[%emt 00:00:17]} h6
{[%clk 00:09:50]} {[%emt 00:00:43]} 14. Bxh6 {[%clk 00:07:46]} {[%emt
00:06:27]} gxh6 {[%clk 00:06:18]} {[%emt 00:03:37]} 15. Qxh6 {[%clk 00:07:49]}
{[%emt 00:00:02]} Nh7 {[%clk 00:06:21]} {[%emt 00:00:01]} 16. Rd3 {[%clk
00:07:28]} {[%emt 00:00:27]} Bg5 {[%clk 00:06:25]} {[%emt 00:00:02]} 17. Rg3
{[%clk 00:07:18]} {[%emt 00:00:13]} Kh8 {[%clk 00:06:22]} {[%emt 00:00:09]} 18.
Qh5 {[%clk 00:07:09]} {[%emt 00:00:13]} Qf6 {[%clk 00:06:15]} {[%emt 00:00:14]}
19. Nf3 {[%clk 00:05:05]} {[%emt 00:02:08]} Bf4 {[%clk 00:03:59]} {[%emt
00:02:21]} 20. Rh3 {[%clk 00:04:25]} {[%emt 00:00:45]} Qg7 {[%clk 00:03:21]}
{[%emt 00:00:43]} 21. g3 {[%clk 00:04:12]} {[%emt 00:00:18]} f5 {[%clk
00:02:29]} {[%emt 00:00:57]} 22. gxf4 {[%clk 00:04:08]} {[%emt 00:00:09]} fxe4
{[%clk 00:02:19]} {[%emt 00:00:15]} 23. Ng5 {[%clk 00:04:05]} {[%emt 00:00:09]}
Be8 {[%clk 00:00:55]} {[%emt 00:01:29]} 24. Qxh7+ {[%clk 00:03:56]} {[%emt
00:00:14]} Qxh7 {[%clk 00:00:59]} {[%emt 00:00:01]} 25. Rxh7+ {[%clk 00:03:29]}
{[%emt 00:00:32]} Kg8 {[%clk 00:01:02]} {[%emt 00:00:01]} 26. Rh4 {[%clk
00:03:15]} {[%emt 00:00:19]} d5 {[%clk 00:00:55]} {[%emt 00:00:12]} 27. Rg1
{[%clk 00:03:03]} {[%emt 00:00:16]} Bg6 {[%clk 00:00:39]} {[%emt 00:00:21]} 28.
Nxe6 {[%clk 00:02:52]} {[%emt 00:00:17]} Rf6 {[%clk 00:00:42]} {[%emt
00:00:02]} 29. f5 {[%clk 00:02:28]} {[%emt 00:00:29]} 1-0

[Event "The Kvibergspelen 2024"]
[Site "Kviberg Park Hotel & Conference, Krutvagen 2, Gothenburg, Sweden"]
[Date "2024.09.06"]
[Round "4.10"]
[White "Rajcevski, Dejan"]
[Black "Larsen, Linus"]
[Result "1-0"]
[TimeControl "15 minutes + 5 seconds per move from move one (Round 1 - 4) / 90 minutes + 30 seconds per move from move one (Round 5 - 8)"]
[WhiteFideId "1759027"]
[BlackFideId "1715275"]
[WhiteElo "2131"]
[BlackElo "1952"]

1. d4 {[%clk 00:15:07]} {[%emt 00:00:03]} Nf6 {[%clk 00:15:08]} {[%emt
00:00:02]} 2. Bf4 {[%clk 00:15:11]} {[%emt 00:00:02]} g6 {[%clk 00:15:06]}
{[%emt 00:00:08]} 3. Nc3 {[%clk 00:15:13]} {[%emt 00:00:01]} d5 {[%clk
00:15:08]} {[%emt 00:00:03]} 4. Qd2 {[%clk 00:15:15]} {[%emt 00:00:04]} Bg7
{[%clk 00:14:42]} {[%emt 00:00:31]} 5. f3 {[%clk 00:15:18]} {[%emt 00:00:02]}
O-O {[%clk 00:13:46]} {[%emt 00:01:01]} 6. O-O-O {[%clk 00:15:19]} {[%emt
00:00:04]} c6 {[%clk 00:12:14]} {[%emt 00:01:37]} 7. g4 {[%clk 00:15:09]}
{[%emt 00:00:15]} Re8 {[%clk 00:10:43]} {[%emt 00:01:36]} 8. h4 {[%clk
00:15:08]} {[%emt 00:00:05]} h5 {[%clk 00:09:54]} {[%emt 00:00:54]} 9. gxh5
{[%clk 00:14:49]} {[%emt 00:00:25]} Nxh5 {[%clk 00:09:51]} {[%emt 00:00:08]} 10.
Nh3 {[%clk 00:13:56]} {[%emt 00:00:58]} e5 {[%clk 00:09:07]} {[%emt 00:00:49]}
11. Bxe5 {[%clk 00:12:05]} {[%emt 00:01:56]} Bxe5 {[%clk 00:08:33]} {[%emt
00:00:39]} 12. dxe5 {[%clk 00:12:08]} {[%emt 00:00:02]} Ng3 {[%clk 00:06:44]}
{[%emt 00:01:54]} 13. Rh2 {[%clk 00:11:59]} {[%emt 00:00:14]} Nxf1 {[%clk
00:05:45]} {[%emt 00:01:04]} 14. Rxf1 {[%clk 00:11:55]} {[%emt 00:00:10]} Rxe5
{[%clk 00:05:46]} {[%emt 00:00:03]} 15. Ng5 {[%clk 00:10:23]} {[%emt 00:01:36]}
f6 {[%clk 00:03:31]} {[%emt 00:02:21]} 16. f4 {[%clk 00:10:00]} {[%emt
00:00:28]} Re8 {[%clk 00:03:28]} {[%emt 00:00:09]} 17. Nf3 {[%clk 00:09:36]}
{[%emt 00:00:28]} Kg7 {[%clk 00:01:26]} {[%emt 00:02:07]} 18. h5 {[%clk
00:09:21]} {[%emt 00:00:19]} d4 {[%clk 00:00:39]} {[%emt 00:00:53]} 19. Nxd4
{[%clk 00:07:52]} {[%emt 00:01:34]} c5 {[%clk 00:00:29]} {[%emt 00:00:14]} 20.
Ndb5 {[%clk 00:07:10]} {[%emt 00:00:47]} Qxd2+ {[%clk 00:00:28]} {[%emt
00:00:06]} 21. Kxd2 {[%clk 00:07:14]} {[%emt 00:00:02]} Na6 {[%clk 00:00:31]}
{[%emt 00:00:03]} 22. Rg1 {[%clk 00:06:56]} {[%emt 00:00:22]} Bd7 {[%clk
00:00:14]} {[%emt 00:00:21]} 23. Nd6 {[%clk 00:06:49]} {[%emt 00:00:13]} Red8
{[%clk 00:00:15]} {[%emt 00:00:05]} 24. Rxg6+ {[%clk 00:06:39]} {[%emt
00:00:14]} Kh7 {[%clk 00:00:19]} {[%emt 00:00:02]} 25. Rxf6 {[%clk 00:06:35]}
{[%emt 00:00:08]} Bc6 {[%clk 00:00:14]} {[%emt 00:00:10]} 26. Kc1 {[%clk
00:06:09]} {[%emt 00:00:30]} Nc7 {[%clk 00:00:18]} {[%emt 00:00:02]} 27. e4
{[%clk 00:05:30]} {[%emt 00:00:43]} b5 {[%clk 00:00:10]} {[%emt 00:00:15]} 28.
e5 {[%clk 00:05:10]} {[%emt 00:00:25]} b4 {[%clk 00:00:13]} {[%emt 00:00:02]}
29. Rf7+ {[%clk 00:05:10]} {[%emt 00:00:04]} Kh8 {[%clk 00:00:14]} {[%emt
00:00:05]} 30. Rxc7 {[%clk 00:05:12]} {[%emt 00:00:02]} bxc3 {[%clk 00:00:17]}
{[%emt 00:00:03]} 31. Rxc6 {[%clk 00:05:11]} {[%emt 00:00:05]} cxb2+ {[%clk
00:00:21]} 32. Kxb2 {[%clk 00:05:13]} {[%emt 00:00:03]} Rab8+ {[%clk 00:00:24]}
{[%emt 00:00:03]} 33. Kc3 {[%clk 00:05:16]} {[%emt 00:00:01]} Rb4 {[%clk
00:00:25]} {[%emt 00:00:04]} 34. Nf7+ {[%clk 00:05:18]} {[%emt 00:00:02]} 1-0